fUST/lending_fUST_20251225
["ID","MTS","AMOUNT","RATE_DAILY","PERIOD"]
[399736011,1766645052783,528.39185017,0.00032877,120]
[399736012,1766645066961,761.77990783,0.000327,120]
[399736026,1766645196861,10243.23618289,0.000327,120]
[399736031,1766645322600,182.16655371,0.000327,120]
[399736032,1766645329953,243.69748563,0.000327,120]
[399736033,1766645332006,204.88826256,0.000327,120]
[399736034,1766645332917,191.78670617,0.000327,120]
[399736035,1766645342626,178.27045017,0.000327,120]
[399736036,1766645345437,177.26912918,0.000327,120]
[399736038,1766645382272,609.42392627,0.000327,120]
[399736075,1766645431726,-150.0,5.384e-05,2]
[399736077,1766645431737,-256.11779252,0.00010491,2]
[399736079,1766645431747,-405.37906232,0.00010533,2]
[399736081,1766645431760,-11377.49400342,0.00010534,2]
[399736083,1766645431772,-825.0,0.00010534,2]
[399736086,1766645431791,-1779.00510183,0.00010534,2]
[399736155,1766645437773,-1888.3931287,0.00010534,2]
[399736161,1766645437826,-529.46489486,0.00010534,2]
[399736168,1766645437888,-5848.75866296,0.00010534,2]
[399736170,1766645437902,-15995.4523268,0.00010534,2]
[399736173,1766645437914,-3527.23581549,0.00010534,2]
[399736175,1766645437927,-2307.74992502,0.00010534,2]
[399736177,1766645437940,-960.88302587,0.00010534,2]
[399736179,1766645437952,-4295.9564416,0.00010534,2]
[399736370,1766645440185,-5702.57552893,0.00010534,2]
[399736633,1766645443064,-500.0,0.00010534,2]
[399736888,1766645445928,-604.017359,0.00010534,2]
[399736890,1766645445940,-461.02753643,0.00010534,2]
[399736902,1766645446051,-699.44,0.00010534,2]
[399737672,1766645529875,1444.0,0.00031945,120]
[399737673,1766645531351,10243.2361829,0.000327,120]
[399737675,1766645560002,-150.0,5.221e-05,2]
[399737676,1766645560025,-1808.52530989,5.313e-05,2]
[399737677,1766645560048,-150.0,5.34e-05,2]
[399737678,1766645560072,-150.0,5.696e-05,2]
[399737679,1766645560095,-150.0,6.171e-05,2]
[399737680,1766645560119,-150.0,6.645e-05,2]
[399737681,1766645560144,-150.0,7.12e-05,2]
[399737682,1766645560168,-177.0,7.34e-05,2]
[399737683,1766645560191,-150.0,7.594e-05,2]
[399737684,1766645560216,-150.0,8.069e-05,2]
[399737685,1766645560243,-164.58,8.544e-05,2]
[399737686,1766645560267,-185.15,9.018e-05,2]
[399737687,1766645560290,-204.0,9.34e-05,2]
[399737688,1766645560312,-205.73,9.493e-05,2]
[399737689,1766645560333,-180.38,0.0001,2]
[399737690,1766645560354,-180.38,0.000102,2]
[399737691,1766645560374,-180.38,0.000104,2]
[399737692,1766645560396,-300.0,0.00010533,2]
[399737693,1766645560419,-164.82245681,0.00010533,2]
[399737694,1766645560447,-5249.0522333,0.00010534,2]
[399737711,1766645636487,182.16655372,0.000327,120]
[399737713,1766645646499,194.9579885,0.000327,120]
[399737714,1766645647961,163.91061004,0.000327,120]
[399737715,1766645658104,178.27045016,0.000327,120]
[399737716,1766645697156,487.53914101,0.000327,120]
[399737780,1766645855885,10243.23618289,0.000327,120]
[399737791,1766645950997,182.16655371,0.000327,120]
[399737792,1766645962901,194.9579885,0.000327,120]
[399737793,1766645964942,163.91061004,0.000327,120]
[399737794,1766645972533,178.27045017,0.000327,120]
[399737805,1766646014505,390.03131281,0.000327,120]
[399737806,1766646023342,156.0,0.00032877,120]
[399737818,1766646091658,554.08,0.00032876,120]
[399737898,1766646181056,10243.2361829,0.000327,120]
[399737937,1766646254279,-150.0,5.269e-05,2]
[399737938,1766646254304,-30.93,5.389e-05,2]
[399737939,1766646254332,-119.07,5.389e-05,2]
[399737940,1766646254356,-57.93,5.749e-05,2]
[399737941,1766646254394,-92.07,5.749e-05,2]
[399737942,1766646254417,-177.0,7.389e-05,2]
[399737943,1766646254440,-14.69534362,9.389e-05,2]
[399737944,1766646254468,-189.30465638,9.389e-05,2]
[399737945,1766646254490,-110.69534362,0.0001,2]
[399737946,1766646254530,-70.23465638,0.0001,2]
[399737947,1766646254552,-300.0,0.00010433,2]
[399737948,1766646254575,-283.76534362,0.00010433,2]
[399737949,1766646264987,587.11,0.00032877,120]
[399737950,1766646265211,182.16655372,0.000327,120]
[399737951,1766646269331,728.175149,0.00030137,120]
[399737952,1766646278453,194.9579885,0.000327,120]
[399737956,1766646283456,163.91061005,0.000327,120]
[399737957,1766646286506,178.27045016,0.000327,120]
[399737958,1766646291739,10000.0,0.00032877,120]
[399737959,1766646296355,10000.0,0.00032877,120]
[399737960,1766646300267,10000.0,0.00032877,120]
[399737964,1766646303683,10000.0,0.00032877,120]
[399737966,1766646306044,300.0,0.00010433,2]
[399737967,1766646306839,1200.0,0.00010433,2]
[399737969,1766646310765,174.11,0.0003287,120]
[399737970,1766646316307,1444.0,0.00031945,120]
[399737971,1766646330180,168.0,0.00030053,120]
[399737972,1766646331422,312.02505025,0.000327,120]
[399737974,1766646331773,168.0,0.00031555,120]
[399737975,1766646413828,-377.31646755,0.00010434,2]
[399738016,1766646503949,611.5394358,0.000328,120]
[399738017,1766646507796,10243.23618289,0.000327,120]
[399738186,1766646596685,194.95798851,0.000327,120]
[399738187,1766646602263,163.91061004,0.000327,120]
[399738194,1766646629164,172.0,0.00030043,120]
[399738197,1766646631880,-566.0,0.00010434,2]
[399738198,1766646631890,-869.27231834,0.00010434,2]
[399738199,1766646631939,-290.19901179,0.00010434,2]
[399738232,1766646638083,-1196.9605039,0.00010434,2]
[399738234,1766646638095,-3643.1441881,0.00010434,2]
[399738459,1766646640638,-37122.17821027,0.00010434,2]
[399739035,1766646647634,249.6200402,0.000327,120]
[399739831,1766646707599,515.6244822,0.00030137,120]
[399739832,1766646752746,401.96665412,0.000328,120]
[399739834,1766646770031,768.74,0.00032877,120]
[399739835,1766646772435,200.0,0.000328,120]
[399739836,1766646813940,4000.0,0.00032876,120]
[399739838,1766646841925,10243.23618289,0.000327,120]
[399739900,1766646913472,194.9579885,0.000327,120]
[399739902,1766646917069,163.91061005,0.000327,120]
[399739923,1766646969283,199.69603216,0.000327,120]
[399739992,1766647082980,461.0,0.00032876,120]
[399740002,1766647101163,1444.0,0.00031945,120]
[399740004,1766647169486,10243.2361829,0.000327,120]
[399740010,1766647283404,199.69603216,0.000327,120]
[399740054,1766647420406,6341.0,0.0003287,120]
[399740062,1766647497654,10243.23618289,0.000327,120]
[399740080,1766647597609,199.69603216,0.000327,120]
[399740113,1766647748770,-150.0,5.21e-05,2]
[399740114,1766647748793,-150.0,5.269e-05,2]
[399740115,1766647748819,-150.0,5.683e-05,2]
[399740116,1766647748842,-220.73800367,7.269e-05,2]
[399740117,1766647748883,-180.78,0.0001,2]
[399740118,1766647748906,-148.48199633,0.000102,2]
[399740119,1766647784121,4983.15776254,0.00032876,120]
[399740120,1766647791336,269.39856938,0.00021585,120]
[399740125,1766647828479,10243.2361829,0.000327,120]
[399740157,1766647832121,-32.29800367,0.000102,2]
[399740159,1766647832131,-256.9514442,0.000102,2]
[399740366,1766647838238,-492.8572652,0.000102,2]
[399740368,1766647838248,-1200.0,0.0001033,2]
[399740370,1766647838259,-300.0,0.0001033,2]
[399740371,1766647838268,-160.0,0.0001033,2]
[399740373,1766647838278,-568.10651577,0.0001033,2]
[399740376,1766647838291,-631.89348423,0.0001033,2]
[399740378,1766647838300,-201.56413103,0.00010332,2]
[399740380,1766647838310,-136.66926641,0.00010333,2]
[399740565,1766647840445,-2665.76654565,0.00010333,2]
[399740566,1766647840462,-25819.49398638,0.00010333,2]
[399740567,1766647840477,-394.56133503,0.00010333,2]
[399740598,1766647843528,-25213.08116314,0.00010333,2]
[399740613,1766647846416,-1075.6164,0.00010333,2]
[399740614,1766647846430,-1075.6164,0.00010333,2]
[399740618,1766647886194,1444.0,0.00031945,120]
[399740619,1766647911586,199.69603216,0.000327,120]
[399740620,1766648159337,10243.23618289,0.000327,120]
[399740621,1766648224284,199.69603216,0.000327,120]
[399740643,1766648480488,10243.2361829,0.000327,120]
[399740644,1766648670713,1444.0,0.00031945,120]
[399740647,1766648800415,10243.23618289,0.000327,120]
[399740649,1766648860878,917.80073365,0.00032876,120]
[399740651,1766648962257,1000.0,0.0003,120]
[399740652,1766648971148,-150.0,5.324e-05,2]
[399740653,1766648971173,-150.0,5.327e-05,2]
[399740654,1766648971198,-217.53,5.716e-05,2]
[399740655,1766648971220,-65.11109711,6.192e-05,2]
[399740686,1766649032728,-150.0,5.248e-05,2]
[399740687,1766649032739,-206.52,5.725e-05,2]
[399740688,1766649032750,-309.78,6.202e-05,2]
[399740689,1766649032761,-413.03,6.679e-05,2]
[399740690,1766649032772,-516.29,7.156e-05,2]
[399740691,1766649032783,-261.11549119,7.324e-05,2]
[399740692,1766649032793,-619.55,7.633e-05,2]
[399740693,1766649032804,-722.81,8.11e-05,2]
[399740694,1766649032815,-826.07,8.587e-05,2]
[399740695,1766649032825,-50000.0,8.677e-05,2]
[399740696,1766649032836,-300.0,8.677e-05,2]
[399740698,1766649032847,-903.0,8.677e-05,2]
[399740700,1766649032858,-180.00043382,8.679e-05,2]
[399740702,1766649032868,-929.33,9.064e-05,2]
[399740704,1766649032878,-1032.59,9.541e-05,2]
[399740706,1766649032888,-420.0,9.545e-05,2]
[399740708,1766649032899,-238.51398579,9.668e-05,2]
[399740710,1766649032909,-156.27,0.0001,2]
[399740711,1766649032919,-365.68,0.0001,2]
[399740713,1766649032930,-201.21620205,0.00010007,2]
[399740716,1766649032941,-229.96137377,0.00010007,2]
[399740717,1766649032951,-358.95533187,0.00010007,2]
[399740720,1766649032961,-156.27,0.000102,2]
[399740721,1766649032971,-194.77143102,0.0001023,2]
[399740724,1766649032985,-432.30116018,0.0001023,2]
[399740726,1766649032995,-30775.37219519,0.00010231,2]
[399740728,1766649033008,-14256.084518,0.00010231,2]
[399740730,1766649033021,-542.57291834,0.00010231,2]
[399740759,1766649033320,-4472.0751145,0.00010231,2]
[399740809,1766649038426,-1419.96876349,0.00010231,2]
[399740811,1766649038439,-826.08819371,0.00010231,2]
[399740824,1766649038560,-1895.5067058,0.00010231,2]
[399740827,1766649038572,-2500.0,0.00010231,2]
[399740829,1766649038584,-2696.88146084,0.00010231,2]
[399740956,1766649040767,-988.37,0.00010231,2]
[399741250,1766649043682,-14033.81464052,0.00010231,2]
[399741272,1766649043892,-2147.26216477,0.00010231,2]
[399741444,1766649119884,10243.2361829,0.000327,120]
[399741445,1766649155273,344.0,0.00032877,120]
[399741449,1766649328907,158.0,0.000328,120]
[399741450,1766649330050,158.0,0.000328,120]
[399741451,1766649336553,158.0,0.000328,120]
[399741452,1766649350613,159.0,0.000328,120]
[399741453,1766649415726,1126.15,0.00032877,120]
[399741454,1766649439795,10243.23618289,0.000327,120]
[399741455,1766649455576,1444.0,0.00031945,120]
[399741456,1766649463478,546.131361,0.00030137,120]
[399741457,1766649516255,574.9,0.0003287,120]
[399741460,1766649560814,200.0,0.0001,5]
[399741462,1766649611253,300.0,0.000324,120]
[399741463,1766649628071,600.0,0.000328,120]
[399741464,1766649644702,642.0,0.000328,120]
[399741465,1766649654789,300.0,0.000328,120]
[399741466,1766649668001,400.0,0.000328,120]
[399741467,1766649668683,1800.0,0.000324,120]
[399741468,1766649691542,200.0,0.00031238,120]
[399741469,1766649758674,2397.12792399,0.000328,120]
[399741470,1766649759024,9218.91256461,0.000327,120]
[399741472,1766649811176,200.0,0.00032277,120]
[399741473,1766649870792,200.0,0.00032535,120]
[399741474,1766649879678,-271.10014075,5.401e-05,2]
[399741475,1766649879701,-150.0,5.59e-05,2]
[399741476,1766649879725,-150.0,5.779e-05,2]
[399741477,1766649879750,-150.0,6.304e-05,2]
[399741478,1766649879773,-151.27,6.83e-05,2]
[399741479,1766649879794,-250.55547876,7.303e-05,2]
[399741480,1766649879817,-201.69,7.355e-05,2]
[399741481,1766649879840,-250.37333727,7.59e-05,2]
[399741482,1766649879863,-252.12,7.88e-05,2]
[399741483,1766649879885,-302.54,8.406e-05,2]
[399741484,1766649879907,-1870.35104322,8.93e-05,2]
[399741485,1766649928919,168.0,0.00029931,120]
[399741486,1766649930151,168.0,0.00031427,120]
[399741487,1766649931507,200.0,0.00016216,120]
[399741488,1766649991163,200.0,0.00018065,120]
[399741489,1766649997130,-150.0,5.756e-05,2]
[399741490,1766649997157,-150.0,6.279e-05,2]
[399741491,1766649997180,-88.01803872,6.803e-05,2]
[399741496,1766650051098,200.0,0.00020901,120]
[399741501,1766650076880,8297.02130814,0.000327,120]
[399741502,1766650079737,245.39,3.996e-05,2]
[399741503,1766650079996,170.35,3.996e-05,2]
[399741504,1766650110831,200.0,0.00030916,120]
[399741507,1766650148094,-412.7356738,5.251e-05,2]
[399741570,1766650231114,200.0,0.00017331,120]
[399741595,1766650232406,-4587.2643262,5.251e-05,2]
[399741597,1766650232416,-150.0,5.755e-05,2]
[399741598,1766650232426,-150.0,6.278e-05,2]
[399741600,1766650232440,-150.0,6.801e-05,2]
[399741602,1766650232450,-150.0,7.324e-05,2]
[399741603,1766650232460,-150.58,7.848e-05,2]
[399741605,1766650232470,-180.69,8.371e-05,2]
[399741606,1766650232480,-210.81,8.894e-05,2]
[399741607,1766650232490,-300.0,8.927e-05,2]
[399741608,1766650232500,-1200.0,8.927e-05,2]
[399741609,1766650232511,-291.0,8.927e-05,2]
[399741610,1766650232520,-17939.24124038,8.928e-05,2]
[399741611,1766650232532,-503.90149108,8.928e-05,2]
[399741612,1766650232543,-2932.96222257,8.928e-05,2]
[399741613,1766650232555,-418.0,8.928e-05,2]
[399741621,1766650238518,-5000.0,5.198e-05,2]
[399741622,1766650238529,-500.0,8.927e-05,2]
[399741623,1766650238539,-570.44333676,8.927e-05,2]
[399741624,1766650238549,-303.49498504,8.927e-05,2]
[399741625,1766650238560,-24205.96190658,8.928e-05,2]
[399741626,1766650238570,-240.92,9.417e-05,2]
[399741627,1766650238580,-302.61081213,9.665e-05,2]
[399741628,1766650238590,-56412.42279396,9.666e-05,2]
[399741629,1766650238602,-3811.66792024,9.666e-05,2]
[399741630,1766650238614,-27128.20096962,9.666e-05,2]
[399741631,1766650238626,-7996.19662887,9.666e-05,2]
[399741632,1766650238641,-861.4296,9.666e-05,2]
[399741633,1766650238653,-2196.29875058,9.666e-05,2]
[399741634,1766650238739,1444.0,0.00031945,120]
[399741635,1766650240911,-2670.57947034,9.666e-05,2]
[399741878,1766650243723,-2446.65668567,9.666e-05,2]
[399741880,1766650243735,-2086.3943386,9.666e-05,2]
[399742306,1766650290845,200.0,0.00023767,120]
[399742307,1766650396451,7467.31917733,0.000327,120]
[399742308,1766650471131,200.0,0.0003195,120]
[399742312,1766650589567,12000.0,0.00032876,120]
[399742313,1766650716318,6720.5872596,0.000327,120]
[399742327,1766650740956,421.4747805,0.00032876,120]
[399742328,1766650950827,200.0,0.00032759,120]
[399742329,1766651022990,1444.0,0.00031945,120]
[399742330,1766651040019,6048.52853364,0.000327,120]
[399742335,1766651190841,200.0,0.00032648,120]
[399742410,1766651360933,5443.67568027,0.000327,120]
[399742411,1766651377681,6814.50574462,0.00032876,120]
[399742440,1766651431653,-150.0,5.376e-05,2]
[399742441,1766651431663,-140.19901179,5.756e-05,2]
[399742486,1766651439921,-9.80098821,5.756e-05,2]
[399742488,1766651439931,-150.0,6.226e-05,2]
[399742490,1766651439942,-272.49,7.264e-05,2]
[399742492,1766651439951,-177.0,7.376e-05,2]
[399742494,1766651439961,-340.62,7.782e-05,2]
[399742496,1766651439971,-288.91689901,8.124e-05,2]
[399742497,1766651439981,-265.30906213,8.124e-05,2]
[399742499,1766651439992,-408.74,8.301e-05,2]
[399742502,1766651440004,-476.87,8.895e-05,2]
[399742504,1766651440014,-4671.5231895,9.244e-05,2]
[399742505,1766651440025,-1326.8350968,9.244e-05,2]
[399742507,1766651440035,-1270.7383558,9.244e-05,2]
[399742509,1766651440046,-21829.2294089,9.244e-05,2]
[399742511,1766651440056,-544.99,9.419e-05,2]
[399742513,1766651440066,-211.82756849,9.665e-05,2]
[399742515,1766651440076,-82880.14337603,9.666e-05,2]
[399742518,1766651440089,-6625.0,9.666e-05,2]
[399742520,1766651440102,-42292.97029421,9.666e-05,2]
[399742689,1766651442922,-255.28721074,9.666e-05,2]
[399742692,1766651443103,-844.4688196,9.666e-05,2]
[399742716,1766651563837,419.36,0.00032876,120]
[399742724,1766651686343,4899.30811225,0.000327,120]
[399742732,1766651807696,1444.0,0.00031945,120]
[399742733,1766651882953,216.0,3.996e-05,2]
[399742744,1766652005220,4409.37730102,0.000327,120]
[399742766,1766652043381,-500.0,5.552e-05,2]
[399742767,1766652043405,-150.0,5.552e-05,2]
[399742768,1766652043429,-150.0,5.572e-05,2]
[399742769,1766652043453,-152.66,6.079e-05,2]
[399742770,1766652043477,-229.0,6.586e-05,2]
[399742771,1766652043501,-305.33,7.092e-05,2]
[399742772,1766652043524,-177.0,7.552e-05,2]
[399742773,1766652043547,-381.66,7.599e-05,2]
[399742774,1766652043577,-300.0,7.771e-05,2]
[399742775,1766652043599,-300.0,7.771e-05,2]
[399742776,1766652043621,-300.0,7.771e-05,2]
[399742777,1766652043644,-620.0,7.771e-05,2]
[399742778,1766652043667,-300.0,7.771e-05,2]
[399742779,1766652043690,-500.0,7.772e-05,2]
[399742780,1766652043710,-500.0,7.772e-05,2]
[399742781,1766652043732,-500.0,7.772e-05,2]
[399742782,1766652043753,-500.0,7.772e-05,2]
[399742783,1766652043777,-500.0,7.772e-05,2]
[399742784,1766652043800,-500.0,7.772e-05,2]
[399742785,1766652043828,-500.0,7.772e-05,2]
[399742786,1766652043852,-500.0,7.772e-05,2]
[399742787,1766652043874,-600.54316388,7.772e-05,2]
[399742788,1766652043899,-500.0,7.772e-05,2]
[399742789,1766652043923,-500.0,7.772e-05,2]
[399742790,1766652043947,-500.0,7.772e-05,2]
[399742791,1766652043971,-282.4834215,7.772e-05,2]
[399742793,1766652043995,-500.0,7.772e-05,2]
[399742794,1766652044018,-300.30939959,7.772e-05,2]
[399742795,1766652044043,-500.0,7.772e-05,2]
[399742796,1766652044069,-500.0,7.772e-05,2]
[399742797,1766652044095,-500.0,7.772e-05,2]
[399742798,1766652044120,-547.715875,7.772e-05,2]
[399742799,1766652044145,-500.0,7.772e-05,2]
[399742800,1766652044169,-500.0,7.772e-05,2]
[399742801,1766652044192,-532.0,7.772e-05,2]
[399742824,1766652092105,10000.0,0.00032877,120]
[399742829,1766652097342,10000.0,0.00032877,120]
[399742831,1766652099907,10000.0,0.00032877,120]
[399742863,1766652324112,3968.43957092,0.000327,120]
[399742865,1766652446200,409.59852,0.00030137,120]
[399742866,1766652466074,1000.0,0.000328,120]
[399742868,1766652526757,37812.55851549,0.00032876,120]
[399742871,1766652591938,1444.0,0.00031945,120]
[399742907,1766652631843,-150.0,5.553e-05,2]
[399742908,1766652631854,-139.24944787,5.879e-05,2]
[399742909,1766652631870,-64.75055213,5.879e-05,2]
[399742910,1766652631894,-150.0,6.058e-05,2]
[399742911,1766652631907,-184.95,6.562e-05,2]
[399742912,1766652631918,-246.6,7.067e-05,2]
[399742913,1766652631928,-308.25,7.572e-05,2]
[399742914,1766652631938,-60.18264222,7.773e-05,2]
[399742915,1766652631952,-346.16652559,7.773e-05,2]
[399742916,1766652631962,-200.03437773,7.773e-05,2]
[399742917,1766652631973,-500.0,7.773e-05,2]
[399742918,1766652631983,-171.96843056,7.773e-05,2]
[399742919,1766652631993,-300.0,7.773e-05,2]
[399742920,1766652632004,-289.84268779,7.774e-05,2]
[399742921,1766652632014,-34710.5709203,7.775e-05,2]
[399742922,1766652632025,-300.88660221,7.917e-05,2]
[399742923,1766652632035,-231.72206515,7.917e-05,2]
[399742924,1766652632045,-264.82521731,7.917e-05,2]
[399742925,1766652632056,-413.37561265,7.917e-05,2]
[399742926,1766652632068,-369.9,8.077e-05,2]
[399742927,1766652632079,-268.12377353,8.219e-05,2]
[399742928,1766652632089,-167.0,8.55e-05,2]
[399742929,1766652632099,-431.55,8.582e-05,2]
[399742930,1766652632111,-404.13387401,9.031e-05,2]
[399742931,1766652632121,-727.44097321,9.031e-05,2]
[399742932,1766652632132,-1293.22839682,9.031e-05,2]
[399742933,1766652632142,-2020.66937003,9.031e-05,2]
[399742934,1766652632152,-2909.76389285,9.031e-05,2]
[399742935,1766652632163,-3956.5514533,9.031e-05,2]
[399742936,1766652632173,-493.21,9.086e-05,2]
[399742937,1766652632184,-470.78244671,9.507e-05,2]
[399742938,1766652632195,-847.40840408,9.507e-05,2]
[399742939,1766652632206,-1506.50382948,9.507e-05,2]
[399742940,1766652632216,-2353.91223356,9.507e-05,2]
[399742941,1766652632227,-3386.24398271,9.507e-05,2]
[399742942,1766652632237,-554.86,9.591e-05,2]
[399742943,1766652632247,-151.0,9.619e-05,2]
[399742944,1766652632258,-22026.46288932,9.619e-05,2]
[399742945,1766652632270,-334.45923056,9.619e-05,2]
[399742953,1766652637787,-3665.11543935,9.619e-05,2]
[399742954,1766652637800,-1024.6242914,9.619e-05,2]
[399742955,1766652637817,-738.58845075,9.619e-05,2]
[399742956,1766652637829,-24138.18086576,9.619e-05,2]
[399742957,1766652637847,-4295.00459402,9.619e-05,2]
[399742958,1766652637860,-2831.46607915,9.619e-05,2]
[399742959,1766652637872,-252.40685106,9.619e-05,2]
[399742960,1766652637893,-11920.48840895,9.619e-05,2]
[399742962,1766652639941,-900.0,9.619e-05,2]
[399742963,1766652640259,-15371.30157573,9.619e-05,2]
[399742964,1766652640272,-2502.35060588,9.619e-05,2]
[399742965,1766652640285,-680.85834149,9.619e-05,2]
[399742966,1766652640297,-454.58,9.619e-05,2]
[399742967,1766652640310,-2711.83010996,9.619e-05,2]
[399743040,1766652641412,3571.59561383,0.000327,120]
[399743437,1766652645909,-2183.19341864,9.619e-05,2]
[399743439,1766652645923,-19743.40293827,9.619e-05,2]
[399744003,1766652964514,3214.43605244,0.000327,120]
[399744012,1766653048739,200.0,0.0001,4]
[399744028,1766653061037,501.30773127,0.00032876,120]
[399744030,1766653061715,500.0,0.00032876,120]
[399744031,1766653061950,500.0,0.00032876,120]
[399744032,1766653062177,500.0,0.00032876,120]
[399744033,1766653062420,439.15171432,0.00032876,120]
[399744035,1766653062906,500.0,0.00032876,120]
[399744036,1766653062993,232.94351915,0.00032876,120]
[399744037,1766653063609,382.2175028,0.00032876,120]
[399744040,1766653065847,500.0,0.00032876,120]
[399744042,1766653065933,500.0,0.00032876,120]
[399744043,1766653066112,408.771844,0.00032876,120]
[399744044,1766653066194,385.73248246,0.00032876,120]
[399744045,1766653066274,500.0,0.00032876,120]
[399744046,1766653066409,500.0,0.00032876,120]
[399744047,1766653066489,500.0,0.00032876,120]
[399744048,1766653066654,414.11585017,0.00032876,120]
[399744049,1766653066730,500.0,0.00032876,120]
[399744051,1766653067326,500.0,0.00032876,120]
[399744052,1766653067393,381.07949279,0.00032876,120]
[399744053,1766653067459,500.0,0.00032876,120]
[399744054,1766653067540,500.0,0.00032876,120]
[399744055,1766653067605,8384.54629347,0.00032876,120]
[399744056,1766653067668,500.0,0.00032876,120]
[399744057,1766653067876,500.0,0.00032876,120]
[399744059,1766653068103,500.0,0.00032876,120]
[399744061,1766653068332,500.0,0.00032876,120]
[399744062,1766653068566,500.0,0.00032876,120]
[399744064,1766653069134,500.0,0.00032876,120]
[399744065,1766653069376,500.0,0.00032876,120]
[399744066,1766653069600,500.0,0.00032876,120]
[399744067,1766653069854,500.0,0.00032876,120]
[399744068,1766653070080,500.0,0.00032876,120]
[399744070,1766653070604,500.0,0.00032876,120]
[399744071,1766653070836,500.0,0.00032876,120]
[399744072,1766653071069,500.0,0.00032876,120]
[399744073,1766653071162,500.0,0.00032876,120]
[399744074,1766653071226,500.0,0.00032876,120]
[399744075,1766653071305,500.0,0.00032876,120]
[399744076,1766653071390,500.0,0.00032876,120]
[399744077,1766653071459,257.39294929,0.00032876,120]
[399744078,1766653071571,499.41406872,0.00032876,120]
[399744079,1766653071685,500.0,0.00032876,120]
[399744081,1766653071929,500.0,0.00032876,120]
[399744083,1766653072197,500.0,0.00032876,120]
[399744086,1766653072433,646.8799639,0.00032876,120]
[399744092,1766653073749,500.0,0.00032876,120]
[399744094,1766653073835,500.0,0.00032876,120]
[399744095,1766653073920,500.0,0.00032876,120]
[399744097,1766653074344,500.0,0.00032876,120]
[399744098,1766653074513,500.0,0.00032876,120]
[399744099,1766653074585,418.61469476,0.00032876,120]
[399744100,1766653074743,500.0,0.00032876,120]
[399744101,1766653075002,500.0,0.00032876,120]
[399744102,1766653075246,500.0,0.00032876,120]
[399744103,1766653075356,1458.95,0.00032876,120]
[399744104,1766653075487,500.0,0.00032876,120]
[399744105,1766653075588,1458.95,0.00032876,120]
[399744106,1766653075713,500.0,0.00032876,120]
[399744107,1766653075805,1458.95,0.00032876,120]
[399744108,1766653075948,563.83847604,0.00032876,120]
[399744109,1766653076036,1458.95,0.00032876,120]
[399744110,1766653076270,1458.95,0.00032876,120]
[399744111,1766653076595,1458.95,0.00032876,120]
[399744112,1766653076817,1458.95,0.00032876,120]
[399744113,1766653077048,1458.95,0.00032876,120]
[399744114,1766653077281,1458.95,0.00032876,120]
[399744115,1766653077509,1458.95,0.00032876,120]
[399744116,1766653077734,1458.95,0.00032876,120]
[399744117,1766653077957,1458.95,0.00032876,120]
[399744118,1766653078095,500.0,0.00032876,120]
[399744119,1766653078208,1458.95,0.00032876,120]
[399744121,1766653078352,500.0,0.00032876,120]
[399744122,1766653078450,1458.95,0.00032876,120]
[399744123,1766653078813,500.0,0.00032876,120]
[399744125,1766653078880,1458.95,0.00032876,120]
[399744126,1766653078953,500.0,0.00032876,120]
[399744127,1766653079024,1458.95,0.00032876,120]
[399744128,1766653079100,500.0,0.00032876,120]
[399744130,1766653079211,1458.95,0.00032876,120]
[399744131,1766653079323,500.0,0.00032876,120]
[399744132,1766653079447,1458.95,0.00032876,120]
[399744133,1766653079583,500.0,0.00032876,120]